Cogmind - Beta 15 @@@ ROGUE MODE // 2025.06.27 @ 00:11:27 Player: McSaucyNugget Result: Destroyed by G-67 Veteran with Field Laser Performance ------------- Evolutions (6) 3000 Regions Visited (20) 4000 Robots Destroyed (161) 805 Value Destroyed (6628) 6628 Prototype IDs (239) 4780 Alien Tech Used (0) 0 Bonus (4646) 4646 TOTAL SCORE: 23859 Bonus ------- Follower Combat Kills 502 Network Hubs Disabled 200 Aligned with FarCom 300 Met Data Miner 300 Used Data Conduit 3000 Met R17 at Cetus 500 Pursued by Intercept 500 Friendly Fire -656 Cogmind --------- Core Integrity 0/1150 Matter 36/300 Energy 99/100 System Corruption 37% Temperature Cool (9) Movement Core (50) Location -4/Factory Parts ------- > --- POWER (2) -------- (None) > --- PROPULSION (6) --- (None) > --- UTILITY (8) ------ (None) > --- WEAPON (3) ------- (None) > --- INVENTORY (5) ---- High-capacity Storage Unit Improved Signal Interpreter Mini Drone Bay (3/3) Peak State ------------ > --- POWER ------------ Particle Reactor Quantum Reactor > --- PROPULSION ------- Heavy Siege Treads Centrium Heavy Treads Centrium Heavy Treads > --- UTILITY ---------- Advanced Heat Sink Advanced Cooling System High-capacity Storage Unit Improved Transmission Jammer Centrium Medium Armor Plating Centrium Medium Armor Plating Hacking Suite Advanced Hacking Suite > --- WEAPON ----------- Variable Charge Gun Advanced Variable Charge Gun Enhanced Gauss Cannon > --- INVENTORY -------- Improved Deuterium Engine Neutrino Core Heavy Siege Treads Centrium Heavy Treads Improved Coolant Injector Improved Signal Interpreter Advanced Terrain Scan Processor Improved Medium Armor Plating Centrium Medium Armor Plating Dynamic Insulation System Variable Charge Gun Variable Charge Gun Advanced Plasma Cannon KE Penetrator KE Penetrator Railgun Hardcell Cannon Heavy Rocket Launcher [Rating: 144] Favorites ----------- Power Light Nuclear Core Engine Angular Momentum Engine Power Core Light Nuclear Core Reactor Quantum Reactor Propulsion Wheel Treads Light Treads Wheel Wheel Hover Unit Hover Unit Flight Unit VTOL Module Utility Huge Storage Unit Device Advanced Heat Sink Storage Huge Storage Unit Processor Signal Interpreter Hackware Hacking Suite Protection Centrium Medium Armor Plating Weapon Advanced Assault Cannon Energy Gun Variable Charge Gun Energy Cannon Advanced Plasma Cannon Ballistic Gun High-powered Shotgun Ballistic Cannon Advanced Assault Cannon Launcher Grenade Launcher Impact Weapon Heavy Mace Piercing Weapon Spear Build | -11 -10 -10 -9 -9 -9 -8 -8 -8 -8 -6 -6 -6 -6 -5 -5 -5 -5 -5 -5 -4 ------- Run | Yrd Mat Min Mat Min Exi Min Mat Sto Rec Fac Low Low Dat Pro Fac Ext Cet Arc Hub Fac Slots Evolved 12 | . . . 2 . . . 2 . . 4 . . . . 2 . . . . 2 Power 1 | . . . . . . . . . . . . . . . 1 . . . . . Propulsion 4 | . . . 1 . . . 1 . . 1 . . . . . . . . . 1 Utility 6 | . . . 1 . . . 1 . . 3 . . . . . . . . . 1 Weapon 1 | . . . . . . . . . . . . . . . 1 . . . . . Parts Attached 158 | 4 10 . 8 3 . . 15 13 1 18 5 6 7 . 6 18 11 3 4 26 Power 19 | 1 . . 2 . . . 1 1 . 1 . 1 . . . 3 3 1 . 5 Engine 8 | 1 . . 2 . . . . . . 1 . 1 . . . . 1 . . 2 Core 9 | . . . . . . . 1 1 . . . . . . . 3 1 . . 3 Reactor 2 | . . . . . . . . . . . . . . . . . 1 1 . . Propulsion 48 | . 4 . 1 1 . . 7 5 1 4 2 2 1 . 5 1 2 1 1 10 Treads 25 | . 2 . . . . . 4 3 . 1 . 2 . . 2 1 2 1 1 6 Leg . | . . . . . . . . . . . . . . . . . . . . . Wheel 19 | . 2 . 1 1 . . 3 2 1 3 2 . 1 . 3 . . . . . Hover 1 | . . . . . . . . . . . . . . . . . . . . 1 Flight 3 | . . . . . . . . . . . . . . . . . . . . 3 Utility 51 | 1 2 . 4 . . . 5 2 . 11 1 1 2 . . 12 4 . 1 5 Device 14 | . . . 2 . . . 1 . . 2 1 . . . . 5 1 . . 2 Storage 6 | 1 2 . . . . . . . . . . . 1 . . 1 . . 1 . Processor 9 | . . . 1 . . . 1 . . 5 . . 1 . . 1 . . . . Hackware 5 | . . . . . . . 1 . . 2 . . . . . 1 . . . 1 Protection 17 | . . . 1 . . . 2 2 . 2 . 1 . . . 4 3 . . 2 Artifact . | . . . . . . . . . . . . . . . . . . . . . Weapon 40 | 2 4 . 1 2 . . 2 5 . 2 2 2 4 . 1 2 2 1 2 6 Energy Gun 9 | . . . . . . . . 3 . . . . . . . 1 1 1 2 1 Energy Cannon 5 | . . . 1 . . . . . . 1 1 . . . 1 . 1 . . . Ballistic Gun 5 | 2 . . . . . . . . . . . 1 . . . . . . . 2 Ballistic Cannon 10 | . 3 . . 1 . . 1 1 . . . 1 . . . 1 . . . 2 Launcher 7 | . 1 . . 1 . . . 1 . 1 1 . 1 . . . . . . 1 Special Weapon . | . . . . . . . . . . . . . . . . . . . . . Impact Weapon 2 | . . . . . . . 1 . . . . . 1 . . . . . . . Slashing Weapon . | . . . . . . . . . . . . . . . . . . . . . Piercing Weapon 2 | . . . . . . . . . . . . . 2 . . . . . . . Special Melee Weapon . | . . . . . . . . . . . . . . . . . . . . . Unidentified Prototypes 4 | . . . . . . . . 4 . . . . . . . . . . . . Parts Lost 84 | . . . 4 1 . . 8 3 . 5 6 5 14 . . 1 2 . 2 33 Power 10 | . . . 1 . . . . . . . . . 1 . . . 2 . . 6 Propulsion 36 | . . . 1 1 . . 5 3 . 5 4 2 5 . . . . . . 10 Utility 15 | . . . 1 . . . 1 . . . 1 2 2 . . . . . 1 7 Weapon 23 | . . . 1 . . . 2 . . . 1 1 6 . . 1 . . 1 10 Highest Loss Streak 28 | . . . 3 1 . . 2 2 . 2 5 5 14 . . 1 2 . 1 28 To Critical Strikes 1 | . . . . . . . . . . . . . . . . . 1 . . . Average Backups 18 | 3 7 11 16 24 25 25 24 24 25 23 21 18 17 4 4 7 9 9 16 14 Power 1 | . 1 1 1 4 4 4 2 2 2 2 2 2 2 1 1 . . 1 1 1 Propulsion 3 | 2 3 2 2 6 6 6 5 5 5 4 2 1 . . . . . 1 3 2 Utility 4 | . . 3 2 4 4 4 5 5 6 7 6 4 4 2 1 2 2 2 4 4 Weapon 8 | . 2 5 8 9 10 10 10 10 9 9 9 9 9 1 2 5 5 5 6 6 Tool/Special . | . . . . . . . . . . . . . . . . . . . . . Unused Backups 34 | . 1 . . . . . 5 1 2 3 . . 3 . 1 4 4 . . 10 Power 6 | . . . . . . . 1 . . 1 . . 1 . . . 1 . . 2 Propulsion 4 | . . . . . . . 1 . 1 . . . . . . . . . . 2 Utility 8 | . . . . . . . . . . 1 . . . . 1 . 1 . . 5 Weapon 15 | . 1 . . . . . 3 1 1 1 . . 1 . . 4 2 . . 1 Tool/Special 1 | . . . . . . . . . . . . . 1 . . . . . . . Average Slot Usage (%) 87 | . 68 85 91 99 100 100 91 96 100 96 92 92 94 5 20 75 85 88 87 78 Engine 4 | . 14 14 11 11 11 11 1 . . 4 6 5 5 . . . 2 . . . Core 3 | . . . . . . . 7 9 9 1 . . . . . 8 5 4 . . Reactor 1 | . . . . . . . . . . . . . . . . . 1 6 11 7 Treads 14 | . 7 . 11 11 11 11 16 17 18 13 13 15 18 . 1 15 17 17 17 17 Wheel 11 | . 4 28 20 21 22 22 17 15 18 16 13 13 12 . 13 1 . . . . Device 5 | . . . 3 . . . . . . 5 12 5 4 . . 14 17 17 16 13 Storage 7 | . 14 14 11 11 11 11 9 9 9 6 6 6 6 . . 3 5 5 5 4 Processor 7 | . . . 9 11 11 11 9 9 9 15 13 13 13 . . 2 . . . . Hackware 5 | . . . . . . . 5 9 9 9 6 6 6 . . 4 5 5 5 6 Protection 7 | . . . 1 11 11 11 5 9 9 6 4 10 12 . . 4 9 11 11 10 Energy Gun 1 | . . . . . . . . . . . . . . . . 4 5 5 8 8 Energy Cannon 3 | . . . 1 11 11 3 . . . 2 6 4 1 . . 4 10 11 7 2 Ballistic Cannon 9 | . 10 28 20 10 11 11 16 17 18 9 5 5 4 . . 4 . . . 2 Peak Build Rating 144 | 4 10 9 15 17 17 17 26 28 28 52 52 49 49 4 30 95 120 122 131 144 Average Rating 47 | 3 6 9 12 15 17 16 22 26 27 43 45 42 42 3 10 78 107 120 127 123 On Entrance 38 | . 4 9 9 15 17 17 16 25 28 28 52 45 45 1 4 30 95 120 122 126 Naked Turns 39 | . . . . . . . . . . . . . 6 23 . . . . . 10 Heaviest Build 122 | 11 91 91 98 100 100 100 102 106 106 118 117 122 122 3 3 80 86 90 120 122 Greatest Support 230 | 3 40 26 26 26 26 26 26 40 20 30 30 22 20 3 70 163 183 188 188 230 Greatest Overweight (x) 11 | 3 4 3 3 9 3 3 4 5 5 11 10 6 6 . . . . . . . Average Overweight (x) 2 | 1 2 3 3 3 3 3 3 4 5 4 4 5 4 . . . . . . . Largest Inventory Capacity 25 | 8 25 25 25 25 25 25 25 25 25 25 25 25 25 5 5 10 10 10 20 20 Average Capacity 20 | 6 10 25 25 25 25 25 25 25 25 25 25 25 24 5 5 8 10 10 19 19 Most Carried 25 | 5 11 11 25 25 25 25 25 25 25 25 24 21 18 5 5 10 10 10 20 20 Average Carried 18 | 3 7 11 16 24 25 25 24 24 24 23 21 18 17 4 4 7 9 9 17 16 Final Capacity 25 | 8 25 25 25 25 25 25 25 25 25 25 25 25 5 5 5 10 10 10 20 5 Final Carried 25 | 5 11 11 25 25 25 25 25 25 25 24 21 18 5 5 5 10 10 10 20 3 Class Distribution -------------------- 38% | Mutant 21% | Scavenger-Mutant 20% | Scavenger-Tank 7% | Commander-Mutant 5% | Commander-Skirmisher Dominant Class ---------------- Mutant | -10/Materials Mutant | -10/Mines Mutant | -9/Materials Mutant | -9/Mines Mutant | -9/Exiles Mutant | -8/Mines Scavenger-Mutant | -8/Materials Scavenger-Mutant | -8/Storage Commander-Mutant | -8/Recycling Commander-Skirmisher | -6/Factory Mutant | -6/Lower Caves Scavenger-Mutant | -6/Lower Caves Scavenger-Mutant | -6/Data Miner Mutant | -5/Proximity Caves Mutant | -5/Factory Scavenger-Tank | -5/Extension Scavenger-Tank | -5/Cetus Scavenger-Tank | -5/Archives Scavenger-Tank | -5/Hub_04(d) Scavenger-Tank | -4/Factory Resources | -11 -10 -10 -9 -9 -9 -8 -8 -8 -8 -6 -6 -6 -6 -5 -5 -5 -5 -5 -5 -4 ----------- Run | Yrd Mat Min Mat Min Exi Min Mat Sto Rec Fac Low Low Dat Pro Fac Ext Cet Arc Hub Fac Matter Collected 4789 | 233 110 . 469 199 . 248 616 510 111 245 403 263 . 114 . 635 110 30 43 450 Remotely . | . . . . . . . . . . . . . . . . . . . . . Salvage Created 6671 | . 207 . 480 217 . 189 586 297 90 319 467 65 101 . . 1601 423 241 796 592 Parts 289 | . 15 . 26 9 . 16 33 12 9 27 9 . 2 . . 48 14 6 37 26 Haulers Intercepted 2 | . . . . . . . . 2 . . . . . . . . . . . . Recyclers Shooed 9 | . . . . . . . . . 2 . . . . . 1 1 . . 1 4 Parts Field Recycled . | . . . . . . . . . . . . . . . . . . . . . Retrieved Matter . | . . . . . . . . . . . . . . . . . . . . . Parts Self-Destructed 8 | . . . . . . . . . . . 2 5 . 1 . . . . . . Prevented 5 | . . . . . . . . . . . 4 . . 1 . . . . . . Kills | -11 -10 -10 -9 -9 -9 -8 -8 -8 -8 -6 -6 -6 -6 -5 -5 -5 -5 -5 -5 -4 ------- Run | Yrd Mat Min Mat Min Exi Min Mat Sto Rec Fac Low Low Dat Pro Fac Ext Cet Arc Hub Fac Combat Hostiles Destroyed 112 | . 7 . 6 5 . 4 23 5 1 8 6 2 2 . . 16 6 2 5 14 Guns 13 | . 3 . . . . . . . . . . . . . . 2 1 . 3 4 Cannons 57 | . 1 . 6 2 . . 11 5 1 4 3 2 . . . 13 1 1 2 5 AOE 35 | . 3 . . 3 . 4 12 . . 4 2 . 2 . . . . . . 5 Classes Destroyed 18 | . 4 . 3 . . . 2 1 1 . 2 2 . . . 2 . . . 1 Worker 10 | . . . . . . . 3 . . 2 . . . . . . . . 4 1 Builder 7 | . . . . . . . . . 2 1 . . . . . . . . 2 2 Tunneler 4 | . . . 1 1 . 2 . . . . . . . . . . . . . . Hauler 2 | . . . . . . . . 2 . . . . . . . . . . . . Recycler 15 | . . . 4 1 . 2 2 . . . . . . . . 4 . . 2 . Mechanic 1 | . . . . . . . . . . . . . . . . . . . . 1 Operator 6 | . 2 . 1 . . . . . . . . . . . . 1 . 1 1 . Watcher 3 | . 1 . 1 . . . . . . . . . . . . . . . 1 . Swarmer 23 | . 3 . . . . 4 11 . . 3 . . . . . . . . . 2 Grunt 38 | . 4 . 3 5 . . 9 1 . 2 3 . . . . 7 . . 1 3 Brawler 1 | . . . . . . . . . . . . . . . . 1 . . . . Duelist 2 | . . . . . . . . . . . 1 . . . . . . . . 1 Sentry 19 | . . . 3 . . . 2 4 1 . . . . . . 4 . 2 3 . Hunter 6 | . . . . . . . 1 . . 3 1 . . . . 1 . . . . Programmer 8 | . . . . . . . . . . . . . . . . 3 . . . 5 Behemoth 2 | . . . . . . . . . . . . 1 . . . . . . 1 . Cetus Guard 6 | . . . . . . . . . . . . . . . . . 6 . . . Enhanced Grunt 2 | . . . . . . . . . . . . . 2 . . . . . . . Tracker 1 | . . . . . . . . . . . . . . . . . . . . 1 Combat Programmer 2 | . . . . . . . . . . . . . . . . . . . . 2 Decomposer 3 | . . . . . . . . . . . 3 . . . . . . . . . Packrat 1 | . . . . . . . . . . . 1 . . . . . . . . . Thief 1 | . . . . . . . . . . . . 1 . . . . . . . . Mutant 1 | . . . . . . . . . . . 1 . . . . . . . . . Best Kill Streak 8 | . 5 . 3 4 . 5 6 2 1 4 4 1 2 . . 4 3 3 8 5 Combat Bots Only 5 | . 3 . 2 3 . 4 5 1 1 4 4 1 2 . . 4 3 2 1 4 Max Kills in Single Turn 8 | . 3 . 1 1 . 2 3 1 1 3 2 1 1 . . 1 1 1 8 2 Gunslinging . | . . . . . . . . . . . . . . . . . . . . . Exploded 3 | . 3 . . 1 . 2 3 . . 3 2 . 1 . . . . . . 2 Melee . | . . . . . . . . . . . . . . . . . . . . . Uniques/NPCs Destroyed 1 | . . . . . . . . . . . . . . . . 1 . . . . A7 (-5/Extension) Combat | -11 -10 -10 -9 -9 -9 -8 -8 -8 -8 -6 -6 -6 -6 -5 -5 -5 -5 -5 -5 -4 -------- Run | Yrd Mat Min Mat Min Exi Min Mat Sto Rec Fac Low Low Dat Pro Fac Ext Cet Arc Hub Fac Hostile Shots Fired 1125 | . 23 1 52 15 . 6 86 28 2 41 62 38 46 24 8 55 51 12 97 478 Missed 291 | . 8 1 10 4 . . 22 13 . 9 14 12 14 11 4 14 18 9 27 101 Hits 834 | . 15 . 42 11 . 6 64 15 2 32 48 26 32 13 4 41 33 3 70 377 Melee 3 | . . . . . . . . . . . 2 1 . . . . . . . . Projectile 831 | . 15 . 42 11 . 6 64 15 2 32 46 25 32 13 4 41 33 3 70 377 AOE 5 | . . 3 . . . . . . . . . . . . . . . . . 2 Critical Strikes 48 | . . . 3 . . . 3 . . 1 2 2 . . . 1 8 . 4 24 Part Disruptions 1 | . . . . . . . . . . . . . . . . . . . . 1 Damage Taken 18162 | . 278 123 590 167 . 47 981 415 25 884 833 630 1506 220 99 856 929 107 1696 7776 Core 2685 | . 116 49 131 44 . 8 94 41 14 48 112 26 375 144 25 100 40 . 160 1158 Absorbed by Shields 24 | . . . . . . . . . . . . . . . . 24 . . . . Reduced by Siege Mode 137 | . . . . . . . . . . . . . . . . . . . 43 94 Redirected to Shielding 91 | . . . . . . . . . . . . . 91 . . . . . . . Ignored by Resistances 89 | . . . . . . . . 3 3 . . 83 . . . . . . . . Regen/Repaired (Parts) 127 | . . . . . . . . 127 . . . . . . . . . . . . Core Remaining (%) 57 | 100 . 34 . . . 54 . . 72 . . . . 17 . . . . 67 . Volleys Fired 472 | . 25 . 33 11 . 11 49 28 10 31 40 31 9 3 3 62 13 8 29 76 Largest 3 | . 2 . 2 2 . 1 2 2 1 2 2 2 1 1 1 3 3 3 3 3 Hottest 268 | . 66 . 101 101 . 40 73 77 40 125 170 170 43 25 98 225 268 268 263 253 Shots Fired 875 | . 46 . 66 17 . 11 83 50 10 48 62 50 10 4 3 121 39 22 73 160 Gun 225 | . 32 . . . . . . . . . . 11 . 4 1 37 13 6 34 87 Cannon 606 | . 12 . 66 12 . 8 73 50 10 45 57 39 1 . 2 84 26 16 39 66 Launcher 44 | . 2 . . 5 . 3 10 . . 3 5 . 9 . . . . . . 7 Special . | . . . . . . . . . . . . . . . . . . . . . Kinetic 430 | . 44 . 62 6 . 8 73 50 10 32 17 26 1 4 1 40 . . . 56 Thermal 401 | . . . 4 6 . . . . . 13 40 24 . . 2 81 39 22 73 97 Explosive 37 | . 2 . . 5 . 3 10 . . 3 . . 7 . . . . . . 7 Electromagnetic 7 | . . . . . . . . . . . 5 . 2 . . . . . . . Robot Hit Streak 24 | . 12 . 9 5 . 3 11 10 14 3 15 13 3 1 1 23 14 17 24 11 Robot Miss Streak 6 | . 2 . 4 1 . 2 3 2 2 6 2 4 1 4 1 2 1 1 1 6 Penetration Max . | . . . . . . . . . . . . . . . . . . . . . Secondary Targets 1 | . 1 . . . . . . . . . . . . . . . . . . . Max Gunslinging Chain 1 | . 1 . . . . . . . . . . . . . . . . . . . Shots Hit Robots 550 | . 33 . 40 10 . 7 53 30 7 18 44 34 10 2 1 72 31 16 59 83 Core Hits 286 | . 16 . 16 11 . 8 42 8 3 19 15 11 17 1 1 35 11 7 24 41 Critical Kills 5 | . . . . . . . . . . . . . . . . 3 2 . . . Critical Parts Destroyed 1 | . . . . . . . . . . . . . 1 . . . . . . . Critical Strikes 25 | . 1 . 3 . . 1 3 4 . 1 . . 1 . . 8 2 . . 1 Meltdown 5 | . . . . . . . . . . . . . . . . 3 2 . . . Blast 19 | . 1 . 3 . . 1 3 4 . 1 . . . . . 5 . . . 1 Smash 1 | . . . . . . . . . . . . . 1 . . . . . . . Melee Attacks 7 | . . . . . . . 1 . . . . . 6 . . . . . . . Impact 6 | . . . . . . . 1 . . . . . 5 . . . . . . . Slashing . | . . . . . . . . . . . . . . . . . . . . . Piercing 1 | . . . . . . . . . . . . . 1 . . . . . . . Sneak Attacks 1 | . . . . . . . . . . . . . 1 . . . . . . . Combat Hostiles . | . . . . . . . . . . . . . . . . . . . . . Follow-up Attacks . | . . . . . . . . . . . . . . . . . . . . . Damage Inflicted 21156 | . 566 . 802 510 . 358 2018 744 194 1056 1499 957 1257 31 11 2454 1073 656 2805 4165 Guns 4140 | . 247 . . . . . . . . . . 190 . 31 11 624 346 100 801 1790 Cannons 10958 | . 144 . 802 143 . 136 1008 723 194 483 1154 767 . . . 1830 727 556 1134 1157 Explosions 5697 | . 175 . . 367 . 222 1001 . . 573 345 . 1015 . . . . . 808 1191 Melee 242 | . . . . . . . . . . . . . 242 . . . . . . . Ramming 119 | . . . . . . . 9 21 . . . . . . . . . . 62 27 Kinetic 6590 | . 391 . 761 80 . 136 1008 723 194 270 364 571 . 31 11 899 . . . 1151 Thermal 8618 | . . . 41 63 . . . . . 213 790 386 . . . 1555 1073 656 1935 1906 Explosive 4382 | . 175 . . 367 . 222 1001 . . 573 . . 963 . . . . . . 1081 Electromagnetic 1205 | . . . . . . . . . . . 345 . 52 . . . . . 808 . Impact 189 | . . . . . . . . . . . . . 189 . . . . . . . Slashing . | . . . . . . . . . . . . . . . . . . . . . Piercing 53 | . . . . . . . . . . . . . 53 . . . . . . . Highest Corruption 37 | . . . . . . . . 2 2 1 5 5 5 5 . . . . 8 37 Average Corruption 4 | . . . . . . . . 1 2 1 3 5 5 5 . . . . 1 13 Corruption Purged . | . . . . . . . . . . . . . . . . . . . . . Corruption Blocked . | . . . . . . . . . . . . . . . . . . . . . Effects 120 | . . . . . . . . 8 11 3 19 20 6 7 . . . . 2 44 Message Errors 29 | . . . . . . . . 2 3 2 5 4 3 1 . . . . . 9 Matter Fused 28 | . . . . . . . . 3 5 1 2 8 . 1 . . . . . 8 Heat Flow Errors 15 | . . . . . . . . 2 . . 1 2 2 . . . . . 1 7 Energy Discharges 10 | . . . . . . . . . . . 2 2 . 2 . . . . . 4 Parts Fused 2 | . . . . . . . . . . . 1 1 . . . . . . . . Data Loss (minor) 13 | . . . . . . . . 1 2 . 3 1 . 1 . . . . . 5 Data Loss (major) 5 | . . . . . . . . . 1 . 2 1 . 1 . . . . . . Misfires 7 | . . . . . . . . . . . 3 1 1 1 . . . . . 1 Alerts 2 | . . . . . . . . . . . . . . . . . . . . 2 Misdirections 5 | . . . . . . . . . . . . . . . . . . . . 5 Weapon Failures 4 | . . . . . . . . . . . . . . . . . . . 1 3 Overload Shots 8 | . . . . . . . . . . . . . . . . 8 . . . . Effects 1 | . . . . . . . . . . . . . . . . 1 . . . . Energy Bleed 1 | . . . . . . . . . . . . . . . . 1 . . . . Overflow Damage 694 | . . . . . . 9 57 . . 48 165 53 51 . . 30 . . 65 216 Projectiles 507 | . . . . . . 9 19 . . 32 165 53 . . . 30 . . 21 178 Explosions 152 | . . . . . . . 38 . . 16 . . 16 . . . . . 44 38 Melee 35 | . . . . . . . . . . . . . 35 . . . . . . . Knockbacks 62 | . 2 . 5 1 . 1 12 5 3 4 2 . 1 . . 5 . . . 21 Impact 3 | . . . . . . . . 1 . . . . 1 . . . . . . 1 Kinetic 49 | . 2 . 5 1 . 1 10 4 3 4 2 . . . . 4 . . . 13 Secondary 10 | . . . . . . . 2 . . . . . . . . 1 . . . 7 Self-Inflicted Damage 536 | . 66 . . 21 . . 92 10 . 153 20 . . . . . . . 99 75 Shots 17 | . 2 . . 1 . . 4 . . 2 4 . . . . . . . 1 3 Rammed 12 | . . . . . . . 1 1 . . . . . . . . . . 4 6 Targets Rammed 12 | . . . . . . . 1 1 . . . . . . . . . . 4 6 Kicked . | . . . . . . . . . . . . . . . . . . . . . Crushed . | . . . . . . . . . . . . . . . . . . . . . Highest Temperature 384 | . 18 . 116 90 . 4 192 234 4 168 216 288 269 . 18 176 36 27 335 384 Average Temperature 59 | . 7 . 32 29 . 2 62 42 2 45 46 90 125 . 13 33 12 13 96 125 Received Heat Transfer 2388 | . 69 . 258 84 . . 342 132 9 207 171 96 . . 27 175 108 27 527 156 Effects 3 | . . . . . . . . . . . . 1 . . . . . . . 2 Shutdowns 1 | . . . . . . . . . . . . . . . . . . . . 1 Interference 1 | . . . . . . . . . . . . 1 . . . . . . . . Short Circuit 1 | . . . . . . . . . . . . . . . . . . . . 1 Siege Activations 2 | . . . . . . . . . . . . . . . . . . . 1 1 Total Turns 33 | . . . . . . . . . . . . . . . . . . . 17 16 Longest Duration 17 | . . . . . . . . . . . . . . . . . . . 17 16 Martial Activations . | . . . . . . . . . . . . . . . . . . . . . Shielding Activations . | . . . . . . . . . . . . . . . . . . . . . Robots Disrupted . | . . . . . . . . . . . . . . . . . . . . . Combat Hostiles . | . . . . . . . . . . . . . . . . . . . . . Robots Corrupted 1 | . . . . . . . . . . . 1 . . . . . . . . . Combat Hostiles 1 | . . . . . . . . . . . 1 . . . . . . . . . Parts Fried 2 | . . . . . . . . . . . 1 . . . . . . . 1 . Impact Corruptions 1 | . . . . . . . . . . . . . 1 . . . . . . . Robots Melted 8 | . . . . . . . . . . . . . . . . 3 4 1 . . Combat Hostiles 6 | . . . . . . . . . . . . . . . . 1 4 1 . . Parts Melted 39 | . . . . . . . . . . 1 . . . . . 15 8 5 6 4 Heat Transferred 10566 | . . . 74 111 . . . . . 259 925 444 . . . 2102 1377 770 2480 2024 Parts Sabotaged . | . . . . . . . . . . . . . . . . . . . . . Parts Stolen . | . . . . . . . . . . . . . . . . . . . . . Parts Stripped . | . . . . . . . . . . . . . . . . . . . . . Power Chain Reactions . | . . . . . . . . . . . . . . . . . . . . . Alert | -11 -10 -10 -9 -9 -9 -8 -8 -8 -8 -6 -6 -6 -6 -5 -5 -5 -5 -5 -5 -4 ------- Run | Yrd Mat Min Mat Min Exi Min Mat Sto Rec Fac Low Low Dat Pro Fac Ext Cet Arc Hub Fac Maximum Alert Level 1 | . . . . . . . 1 . . . . . . . . 1 1 . 1 1 Low Security (%) 92 | 100 100 100 100 100 . 100 99 100 100 100 . . . . 100 76 88 100 91 55 Level 1 7 | . . . . . . . . . . . . . . . . 23 11 . 8 44 Level 2 . | . . . . . . . . . . . . . . . . . . . . . Level 3 . | . . . . . . . . . . . . . . . . . . . . . Level 4 . | . . . . . . . . . . . . . . . . . . . . . Level 5 . | . . . . . . . . . . . . . . . . . . . . . High Security . | . . . . . . . . . . . . . . . . . . . . . Max Security . | . . . . . . . . . . . . . . . . . . . . . Peak Influence 396 | . 166 7 87 118 . 113 201 51 38 170 . . . . 17 327 210 49 396 297 Initial 177 | . . 7 . 13 . . . 21 7 . . . . . . 1 157 49 . 177 Average 62 | . 64 1 32 41 . 32 46 11 5 50 . . . . 2 109 162 18 56 168 Influence Increases 5062 | . 243 . 261 211 . 131 693 296 87 462 135 37 . . 28 643 308 105 602 820 Destroy 0b10 Robot/C 2360 | . 140 . 120 140 . 80 460 120 40 180 100 20 . . . 340 160 80 100 280 Destroy 0b10 Robot/NC 265 | . 15 . 35 15 . 20 25 10 10 20 . 5 . . . 25 10 5 50 20 Destroy Leader 490 | . 42 . 42 20 . 10 80 54 . 40 20 10 . . . 60 . . 42 70 Allied During Kill 314 | . . . . 8 . . . 21 34 9 . 2 . . . 90 130 18 2 . Successful Hack 42 | . . . . . . . . 4 . 12 . . . . 9 7 . . . 10 Disable Machine 495 | . . . 15 . . . 60 75 . 90 . . . . . 75 . . 90 90 Destroy Structure 871 | . 16 . 4 28 . 21 68 12 3 111 . . . . 4 46 8 2 258 290 Partial Spotted 15 | . . . . . . . . . . . . . . . 15 . . . . . Lose Combat Pursuer 210 | . 30 . 45 . . . . . . . 15 . . . . . . . 60 60 Influence Decreases 4835 | . 224 19 225 247 . 131 642 326 108 331 266 37 . . 24 365 467 228 240 955 Entered New Map 516 | . . 12 . 23 . . . 30 14 . 50 . . . . 3 125 74 . 185 Time Decay 3321 | . 224 7 203 194 . 131 422 275 94 261 156 37 . . 24 342 222 59 230 440 Lost Part 593 | . . . 22 10 . . 70 21 . 50 60 . . . . . 20 . 10 330 Lost Ally 255 | . . . . 20 . . . . . 20 . . . . . 20 100 95 . . Purge Threat 150 | . . . . . . . 150 . . . . . . . . . . . . . Squads Dispatched 27 | . 2 . . 2 . . 1 2 . 6 . . . . 2 2 . . 1 9 Investigation 4 | . . . . 1 . . . 1 . 1 . . . . . 1 . . . . Extermination 7 | . . . . . . . . . . 3 . . . . . . . . 1 3 Reinforcement 12 | . 2 . . . . . 1 1 . 2 . . . . 2 1 . . . 3 Assault 1 | . . . . 1 . . . . . . . . . . . . . . . . Garrison . | . . . . . . . . . . . . . . . . . . . . . Intercept 3 | . . . . . . . . . . . . . . . . . . . . 3 Searches Triggered . | . . . . . . . . . . . . . . . . . . . . . Construction Impeded 3 | . . . . . . . . . . 1 . . . . . . . . . 2 Haulers Reinforced . | . . . . . . . . . . . . . . . . . . . . . Active Scanning Responses . | . . . . . . . . . . . . . . . . . . . . . Cargo Convoy Interrupts . | . . . . . . . . . . . . . . . . . . . . . Stealth | -11 -10 -10 -9 -9 -9 -8 -8 -8 -8 -6 -6 -6 -6 -5 -5 -5 -5 -5 -5 -4 --------- Run | Yrd Mat Min Mat Min Exi Min Mat Sto Rec Fac Low Low Dat Pro Fac Ext Cet Arc Hub Fac Distress Signals 17 | . 2 . 2 . . . 5 2 . . . . . . 1 1 2 . 1 1 Communications Jammed 8 | . . . . . . . . . . . . . . . . . . . . 8 Distress Signals 8 | . . . . . . . . . . . . . . . . . . . . 8 Times Spotted 222 | . 14 2 17 10 1 4 34 15 3 10 7 2 4 5 5 20 10 4 19 36 Peak Tracking Total 9 | . 5 2 6 5 3 4 7 4 1 2 4 1 4 5 4 4 5 2 7 9 Tactical Retreats 9 | . 1 . 2 . . . . . . . 1 . . . . . . . 4 1 Traps | -11 -10 -10 -9 -9 -9 -8 -8 -8 -8 -6 -6 -6 -6 -5 -5 -5 -5 -5 -5 -4 ------- Run | Yrd Mat Min Mat Min Exi Min Mat Sto Rec Fac Low Low Dat Pro Fac Ext Cet Arc Hub Fac Traps Triggered 10 | . 1 . . . . . 1 2 . 1 . . . . . . . . 1 4 Indirectly . | . . . . . . . . . . . . . . . . . . . . . Trap Hack Attempts . | . . . . . . . . . . . . . . . . . . . . . Triggered . | . . . . . . . . . . . . . . . . . . . . . Disarmed . | . . . . . . . . . . . . . . . . . . . . . Reprogrammed . | . . . . . . . . . . . . . . . . . . . . . Reused . | . . . . . . . . . . . . . . . . . . . . . Traps Extracted . | . . . . . . . . . . . . . . . . . . . . . Installed . | . . . . . . . . . . . . . . . . . . . . . Triggered . | . . . . . . . . . . . . . . . . . . . . . Machines | -11 -10 -10 -9 -9 -9 -8 -8 -8 -8 -6 -6 -6 -6 -5 -5 -5 -5 -5 -5 -4 ---------- Run | Yrd Mat Min Mat Min Exi Min Mat Sto Rec Fac Low Low Dat Pro Fac Ext Cet Arc Hub Fac Machines Disabled 34 | . . . 1 . . . 4 5 . 6 1 . . . . 5 . . 6 6 Max in Single Turn 5 | . . . 1 . . . 1 1 . 2 1 . . . . 1 . . 5 2 Garrison Access 1 | . . . . . . . 1 . . . . . . . . . . . . . Network Hub 1 | . . . . . . . . . . . . . . . . . . . 1 . Machines Repaired . | . . . . . . . . . . . . . . . . . . . . . Machines Dismantled . | . . . . . . . . . . . . . . . . . . . . . Machines Sabotaged . | . . . . . . . . . . . . . . . . . . . . . Overloaded Fab Kills . | . . . . . . . . . . . . . . . . . . . . . Hacking | -11 -10 -10 -9 -9 -9 -8 -8 -8 -8 -6 -6 -6 -6 -5 -5 -5 -5 -5 -5 -4 --------- Run | Yrd Mat Min Mat Min Exi Min Mat Sto Rec Fac Low Low Dat Pro Fac Ext Cet Arc Hub Fac Machines Accessed 41 | . . . 1 1 2 . 5 3 3 4 . . 4 . 3 10 . . 4 1 Terminals 30 | . . . 1 . . . 4 2 3 3 . . . . 3 10 . . 3 1 Fabricators . | . . . . . . . . . . . . . . . . . . . . . Repair Stations 2 | . . . . . . . . 1 . 1 . . . . . . . . . . Recycling Units . | . . . . . . . . . . . . . . . . . . . . . Scanalyzers . | . . . . . . . . . . . . . . . . . . . . . Garrison Access 2 | . . . . . . . 1 . . . . . . . . . . . 1 . Total Hacks 95 | . . . 1 1 2 . 9 5 4 9 . . 29 . 4 20 . . 6 5 Successful 54 | . . . . 1 2 . 3 4 3 4 . . 29 . 3 4 . . . 1 Failed 41 | . . . 1 . . . 6 1 1 5 . . . . 1 16 . . 6 4 Catastrophic 13 | . . . 1 . . . 3 . . . . . . . . 4 . . 3 2 Database Lockouts . | . . . . . . . . . . . . . . . . . . . . . Manual 18 | . . . 1 . 1 . 2 1 . 2 . . . . . 3 . . 3 5 Terminals 55 | . . . 1 . . . 7 3 4 7 . . . . 4 20 . . 4 5 Fabricators . | . . . . . . . . . . . . . . . . . . . . . Repair Stations 4 | . . . . . . . . 2 . 2 . . . . . . . . . . Recycling Units . | . . . . . . . . . . . . . . . . . . . . . Scanalyzers . | . . . . . . . . . . . . . . . . . . . . . Garrison Access 4 | . . . . . . . 2 . . . . . . . . . . . 2 . Terminal Hacks 48 | . . . . 1 2 . 2 1 3 3 . . 29 . 3 4 . . . . Record 12 | . . . . . 1 . . . . . . . 11 . . . . . . . Part Schematic 10 | . . . . . . . . . . . . . 10 . . . . . . . Robot Schematic 5 | . . . . . . . . . . . . . 5 . . . . . . . Robot Analysis 1 | . . . . . . . . . 1 . . . . . . . . . . . Prototype ID Bank 3 | . . . . . . . . . . . . . 3 . . . . . . . Open Door 7 | . . . . 1 . . . 1 . . . . . . 1 4 . . . . Branch Access Points 2 | . . . . . . . . . . 1 . . . . 1 . . . . . Terminal Index 2 | . . . . . . . 1 . . 1 . . . . . . . . . . Unreport Threat 1 | . . . . . . . 1 . . . . . . . . . . . . . Hauler Manifests 1 | . . . . . . . . . 1 . . . . . . . . . . . Zone Layout 3 | . . . . . . . . . 1 1 . . . . 1 . . . . . Proto ID Catalog 1 | . . . . . 1 . . . . . . . . . . . . . . . Fabricator Hacks . | . . . . . . . . . . . . . . . . . . . . . Repair Station Hacks 3 | . . . . . . . . 2 . 1 . . . . . . . . . . Scan Component 2 | . . . . . . . . 1 . 1 . . . . . . . . . . Repair 1 | . . . . . . . . 1 . . . . . . . . . . . . Recycling Unit Hacks . | . . . . . . . . . . . . . . . . . . . . . Scanalyzer . | . . . . . . . . . . . . . . . . . . . . . Garrison Access Hacks 1 | . . . . . . . 1 . . . . . . . . . . . . . Seal Access 1 | . . . . . . . 1 . . . . . . . . . . . . . Unauthorized Hacks 2 | . . . . . . . . 1 . . . . . . . . . . . 1 Terminals 2 | . . . . . . . . 1 . . . . . . . . . . . 1 Botnet 2 | . . . . . . . . 1 . . . . . . . . . . . 1 Fabricators . | . . . . . . . . . . . . . . . . . . . . . Repair Stations . | . . . . . . . . . . . . . . . . . . . . . Recycling Units . | . . . . . . . . . . . . . . . . . . . . . Scanalyzers . | . . . . . . . . . . . . . . . . . . . . . Garrison Access . | . . . . . . . . . . . . . . . . . . . . . Data Cores Recovered 1 | . . . 1 . . . . . . . . . . . . . . . . . Used . | . . . . . . . . . . . . . . . . . . . . . Hacking Detections 25 | . . . 1 . . . 4 1 2 3 . . . . 1 8 . . 4 1 Full Trace Events 2 | . . . . . . . . . . 1 . . . . . 1 . . . . Feedback Events . | . . . . . . . . . . . . . . . . . . . . . Feedback Blocked . | . . . . . . . . . . . . . . . . . . . . . Robot Schematics Acquired 5 | . . . . . . . . . . . . . 5 . . . . . . . Robots Built . | . . . . . . . . . . . . . . . . . . . . . Authchips . | . . . . . . . . . . . . . . . . . . . . . Time . | . . . . . . . . . . . . . . . . . . . . . Total Robot Build Rating . | . . . . . . . . . . . . . . . . . . . . . Part Schematics Acquired 10 | . . . . . . . . . . . . . 10 . . . . . . . Parts Built . | . . . . . . . . . . . . . . . . . . . . . Authchips . | . . . . . . . . . . . . . . . . . . . . . Time . | . . . . . . . . . . . . . . . . . . . . . Total Part Build Rating . | . . . . . . . . . . . . . . . . . . . . . Parts Repaired 1 | . . . . . . . . 1 . . . . . . . . . . . . Time 44 | . . . . . . . . 44 . . . . . . . . . . . . Parts Recycled . | . . . . . . . . . . . . . . . . . . . . . Recycled Matter . | . . . . . . . . . . . . . . . . . . . . . Retrieved Matter . | . . . . . . . . . . . . . . . . . . . . . Retrieved Components . | . . . . . . . . . . . . . . . . . . . . . Parts Scanalyzed . | . . . . . . . . . . . . . . . . . . . . . Part Schematics Acquired . | . . . . . . . . . . . . . . . . . . . . . Parts Damaged . | . . . . . . . . . . . . . . . . . . . . . Bothacking | -11 -10 -10 -9 -9 -9 -8 -8 -8 -8 -6 -6 -6 -6 -5 -5 -5 -5 -5 -5 -4 ------------ Run | Yrd Mat Min Mat Min Exi Min Mat Sto Rec Fac Low Low Dat Pro Fac Ext Cet Arc Hub Fac Used RIF Installer . | . . . . . . . . . . . . . . . . . . . . . Robots Hacked . | . . . . . . . . . . . . . . . . . . . . . Non-combat . | . . . . . . . . . . . . . . . . . . . . . Combat . | . . . . . . . . . . . . . . . . . . . . . Robot Hacks Applied . | . . . . . . . . . . . . . . . . . . . . . Relay Couplers Released . | . . . . . . . . . . . . . . . . . . . . . Fabnet Peak Effective % . | . . . . . . . . . . . . . . . . . . . . . Robots Rewired 7 | . . . . . . . . . . . 3 . . . . 4 . . . . Allies Hacked . | . . . . . . . . . . . . . . . . . . . . . Hacks Repelled . | . . . . . . . . . . . . . . . . . . . . . Allies | -11 -10 -10 -9 -9 -9 -8 -8 -8 -8 -6 -6 -6 -6 -5 -5 -5 -5 -5 -5 -4 -------- Run | Yrd Mat Min Mat Min Exi Min Mat Sto Rec Fac Low Low Dat Pro Fac Ext Cet Arc Hub Fac Total Allies 30 | . . . . 1 . . . 10 . . 3 . . . . 16 . . . . Largest Group 12 | . . . . 1 . . . 10 10 7 3 3 1 . . 12 12 7 1 . Highest-Rated Group 327 | . . . . 31 . . . 173 173 125 60 60 20 . . 327 327 179 23 . Highest-Rated Ally 159 | . . . . 31 . . . 29 29 29 20 20 20 . . 159 31 31 23 . Total Orders 4 | . . . . . . . . . . . . . 4 . . . . . . . STAY 4 | . . . . . . . . . . . . . 4 . . . . . . . Ally Attacks 195 | . . . . 20 . . . 5 4 12 . 28 2 . . 42 55 25 2 . Total Damage 3502 | . . . . 238 . . . 72 33 178 . 826 18 . . 777 877 461 22 . Kills 14 | . . . . 3 . . . 1 1 2 . . . . . 1 4 2 . . Allies Corrupted . | . . . . . . . . . . . . . . . . . . . . . Allies Melted 2 | . . . . . . . . . . . . 1 . . . 1 . . . . Intel | -11 -10 -10 -9 -9 -9 -8 -8 -8 -8 -6 -6 -6 -6 -5 -5 -5 -5 -5 -5 -4 ------- Run | Yrd Mat Min Mat Min Exi Min Mat Sto Rec Fac Low Low Dat Pro Fac Ext Cet Arc Hub Fac Active Infowar (turns) 5025 | . . . 193 . . . . . . 1593 638 571 386 . . 748 . . . 896 Optics 82 | . . . . . . . . . . . . . 82 . . . . . . . Sensors 132 | . . . 132 . . . . . . . . . . . . . . . . . Terrain 2392 | . . . . . . . . . . 886 631 571 304 . . . . . . . Seismic 63 | . . . 63 . . . . . . . . . . . . . . . . . Jamming 2358 | . . . . . . . . . . 707 7 . . . . 748 . . . 896 Robot Analysis Total 152 | . . . . . . . . . 1 . . . 151 . . . . . . . Derelict Logs Recovered 7 | . . . . 2 . . . . . . 1 3 . 1 . . . . . . Drone Launches . | . . . . . . . . . . . . . . . . . . . . . Drone Recoveries . | . . . . . . . . . . . . . . . . . . . . . Exploration | -11 -10 -10 -9 -9 -9 -8 -8 -8 -8 -6 -6 -6 -6 -5 -5 -5 -5 -5 -5 -4 ------------- Run | Yrd Mat Min Mat Min Exi Min Mat Sto Rec Fac Low Low Dat Pro Fac Ext Cet Arc Hub Fac Turns Passed 13602 | 61 646 123 611 580 392 431 1399 1245 718 1614 705 749 392 276 163 1096 477 141 697 1086 Spaces Moved 7821 | 41 293 92 275 400 291 301 819 644 432 862 334 367 227 380 270 564 246 69 332 582 Core 935 | 41 132 . . . . . . . . . . . 14 380 267 87 . . . 14 Treads 1738 | . 93 . . . . . 26 52 . . . 12 . . 1 477 246 69 332 430 Legs . | . . . . . . . . . . . . . . . . . . . . . Wheels 5010 | . 68 92 275 400 291 301 793 592 432 862 334 355 213 . 2 . . . . . Hover . | . . . . . . . . . . . . . . . . . . . . . Flight 138 | . . . . . . . . . . . . . . . . . . . . 138 Fastest Speed 29 | 50 135 135 135 135 135 135 135 135 155 125 125 140 50 50 50 50 160 160 160 29 Average Speed 140 | 126 180 135 135 136 135 135 145 163 155 139 151 174 150 50 50 143 160 160 162 128 Slowest Speed 480 | 200 250 135 135 215 135 135 480 480 155 245 230 465 170 50 160 160 160 160 163 173 Overloaded Moves . | . . . . . . . . . . . . . . . . . . . . . Propulsion Burnouts . | . . . . . . . . . . . . . . . . . . . . . Robots Hopped 3 | . . . . . . . . . . . . . . . . . . . . 3 Potential Cave-ins 8 | . . . . . . . . . . . . . . . . 8 . . . . Cave-ins Triggered . | . . . . . . . . . . . . . . . . . . . . . Exploration Rate (%) 50 | 4 41 19 31 94 67 66 59 68 75 19 51 52 81 62 9 65 60 72 35 23 Regions Visited 20 Branch Regions 14 Pre-discovered Areas 26 | . . . . 1 1 . . . . . . . 23 1 . . . . . . Known Exits Taken 11 | . . . 1 1 1 1 1 1 1 1 1 . . 1 1 . . . . . Unknown Exits Taken 9 | 1 1 1 . . . . . . . . . 1 1 . . 1 1 1 1 . Scrap Searched 8 | . . . . 1 . 1 . . . . 2 3 . 1 . . . . . . Spaces Dug 51 | . . . . . . . 3 . . 4 2 8 . . 2 7 . . 5 20 Terrain Destroyed 716 | . 14 . 1 36 . 24 71 12 3 127 14 12 39 . 2 36 3 1 172 149 Melee 1 | . . . . . . . 1 . . . . . . . . . . . . . Projectile 169 | . 2 . 1 1 . 3 11 12 3 11 14 12 . . 2 36 3 1 10 47 AOE 546 | . 12 . . 35 . 21 59 . . 116 . . 39 . . . . . 162 102 Terrain Rammed . | . . . . . . . . . . . . . . . . . . . . . Walls Destroyed . | . . . . . . . . . . . . . . . . . . . . . Machines Disabled . | . . . . . . . . . . . . . . . . . . . . . Actions | -11 -10 -10 -9 -9 -9 -8 -8 -8 -8 -6 -6 -6 -6 -5 -5 -5 -5 -5 -5 -4 --------- Run | Yrd Mat Min Mat Min Exi Min Mat Sto Rec Fac Low Low Dat Pro Fac Ext Cet Arc Hub Fac Total 9642 | 49 366 91 447 416 290 316 939 783 472 1219 472 423 256 462 294 750 303 84 430 780 Wait 808 | . 22 . 110 2 . . 14 81 25 272 8 11 4 78 1 60 16 . 49 55 Move 7796 | 40 292 91 274 399 290 300 818 643 431 861 333 366 226 379 269 563 245 68 332 576 Hop 3 | . . . . . . . . . . . . . . . . . . . . 3 Pick Up 125 | 5 10 . 18 . . 2 16 4 2 14 3 2 . 1 4 12 6 1 10 15 Fast Attach 56 | 4 2 . 2 . . . 4 7 . 1 . 4 . . 5 13 5 1 . 8 Attach 82 | . 3 . 6 1 . . 11 2 . 11 6 4 7 1 3 3 1 . 1 22 Detach 19 | . 3 . 1 . . . 4 . . 3 1 . 2 . 3 2 . . . . Swap 75 | . 5 . 3 3 . 1 10 7 1 12 4 4 2 . . 6 5 2 4 6 Drop 86 | . 4 . . . . 2 11 10 3 6 . 1 . . 6 12 12 4 2 13 Fire 472 | . 25 . 33 11 . 11 49 28 10 31 40 31 9 3 3 62 13 8 29 76 Melee 7 | . . . . . . . 1 . . . . . 6 . . . . . . . Ram 4 | . . . . . . . 1 1 . . . . . . . . . . . 2 Kick . | . . . . . . . . . . . . . . . . . . . . . Crush 7 | . . . . . . . . . . . . . . . . . . . 3 4 Escape Stasis 8 | . . . . . . . . . . 8 . . . . . . . . . . Rewire 94 | . . . . . . . . . . . 77 . . . . 17 . . . . Trap . | . . . . . . . . . . . . . . . . . . . . . Miscellaneous . | . . . . . . . . . . . . . . . . . . . . . Route ------- -11/Scrapyard -10/Materials (discovered 2 exits: *Mat / [*Min]) -10/Mines (discovered 2 exits: *Mat / [*Sub]) -9/Materials -9/Mines (discovered 4 exits: *Mat x2 / *Exi / *Zio) -9/Exiles -8/Mines -8/Materials (discovered 3 exits: [*Fac x2] / *Sto) -8/Storage (discovered 2 exits: [*Fac] / *Rec) -8/Recycling -6/Factory (discovered 3 exits: *Fac / *Low x2) -6/Lower Caves -6/Lower Caves -6/Data Miner -5/Proximity Caves -5/Factory (discovered 4 exits: Upp x2 / *Ext x2) -5/Extension (discovered 2 exits: *Fac / *Cet) -5/Cetus (discovered 2 exits: *Fac / [*Arc]) -5/Archives -5/Hub_04(d) -4/Factory History --------- Turn | Location | Event 9 | -11/Scrapyard | Discovered new exit (range 15) 62 | -11/Scrapyard | Entered Materials 313 | -10/Materials | Build established: Mutant 370 | -10/Materials | Discovered new exit (range 15) 508 | -10/Materials | Discovered new exit (range 16) 708 | -10/Materials | Entered Mines 721 | -10/Mines | Discovered new exit (range 15) 777 | -10/Mines | Discovered new exit (range 4) 799 | -10/Mines | Assembled infested the area 804 | -10/Mines | Assisted by a Guerilla fighting off Assembled 808 | -10/Mines | Core integrity fell below 50% 831 | -10/Mines | Entered Materials 831 | -9/Materials | Evolved 2 slots: Propulsion x1, Utility x1 1056 | -9/Materials | Lost 3 parts (1p1n1u) 1302 | -9/Materials | Discovered new exit (range 9) 1400 | -9/Materials | Identified exit to Mines 1442 | -9/Materials | Entered Mines 1443 | -9/Mines | A Derelict revealed a hidden shortcut to a safe place 1448 | -9/Mines | Identified exit to Zion 1480 | -9/Mines | Met a Derelict bent on vengeance 1524 | -9/Mines | Met a Derelict testing a Signal Generator 1548 | -9/Mines | Learned location of Storage (-8) 1664 | -9/Mines | Discovered new exit (range 14) 1724 | -9/Mines | Found a hidden stash of uninstalled traps 1794 | -9/Mines | Met a Derelict shopkeep closing up shop 1802 | -9/Mines | Identified exit to Materials 1951 | -9/Mines | Discovered exit to Materials (range 8) 2015 | -9/Mines | Deemed a non-threat by the Exiles lab entrance 2017 | -9/Mines | Discovered new exit (range 5) 2021 | -9/Mines | Identified exit to Exiles 2022 | -9/Mines | Entered Exiles 2059 | -9/Exiles | Met 8R-AWN 2079 | -9/Exiles | Met EX-HEX 2117 | -9/Exiles | Met EX-BIN 2133 | -9/Exiles | Aligned with FarCom system 2135 | -9/Exiles | Given EX-Vault access code 2174 | -9/Exiles | Opened EX-Vault 2209 | -9/Exiles | Warned to stay clear of 0b10 Research branches 2229 | -9/Exiles | Exiles lab attacked by MAIN.C 2280 | -9/Exiles | Learned location of Zion (-7) 2398 | -9/Exiles | Discovered new exit (range 14) 2413 | -9/Exiles | Identified exit to Mines 2414 | -9/Exiles | Entered Mines 2815 | -8/Mines | Discovered exit to Materials (range 9) 2845 | -8/Mines | Entered Materials 2845 | -8/Materials | Evolved 2 slots: Propulsion x1, Utility x1 2846 | -8/Materials | Identified exit to Storage 3645 | -8/Materials | Discovered new exit (range 16) 3826 | -8/Materials | Build established: Scavenger-Mutant 3953 | -8/Materials | Discovered new exit (range 5) 4244 | -8/Materials | Entered Storage 4262 | -8/Storage | Met 01-MTF 4758 | -8/Storage | Repaired Adv. Assault Cannon 5071 | -8/Storage | Discovered new exit (range 6) 5202 | -8/Storage | Discovered new exit (range 13) 5222 | -8/Storage | Assisted by bots powering up and referring to "LRC-V3" 5455 | -8/Storage | Identified exit to Recycling 5489 | -8/Storage | Entered Recycling 5489 | -8/Recycling | Accompanied by 11 allies (01-MTF) 5527 | -8/Recycling | Build established: Commander-Mutant 5988 | -8/Recycling | Discovered new exit (range 12) 6106 | -8/Recycling | Scanned before Scraplab entrance 6172 | -8/Recycling | Lost 4 allies 6188 | -8/Recycling | Identified exit to Factory 6207 | -8/Recycling | Entered Factory 6207 | -6/Factory | Accompanied by 7 allies 6207 | -6/Factory | Evolved 4 slots: Propulsion x1, Utility x3 6441 | -6/Factory | Discovered new exit (range 7) 6451 | -6/Factory | Identified exit to Factory 6509 | -6/Factory | Build established: Commander-Skirmisher 6927 | -6/Factory | Lost 6 allies 7112 | -6/Factory | Identified exit to Lower Caves 7522 | -6/Factory | Build established: Scavenger-Mutant 7821 | -6/Factory | Entered Lower Caves 7877 | -6/Lower Caves | Identified exit to Lower Caves 8049 | -6/Lower Caves | Lost 5 parts (3n1u1w) 8069 | -6/Lower Caves | Attacked by a delusional Derelict stockpiling Unaware 8204 | -6/Lower Caves | Build established: Mutant 8526 | -6/Lower Caves | Entered another Lower Caves area 8526 | -6/Lower Caves | Accompanied by 3 allies 8580 | -6/Lower Caves | Learned Factory emergency access door positions 8614 | -6/Lower Caves | Spotted B-75 Beast 8668 | -6/Lower Caves | Destroyed B-75 Beast 8670 | -6/Lower Caves | Lost 5 parts (2n2u1w) 8843 | -6/Lower Caves | Encountered a Warlord checkpoint 8903 | -6/Lower Caves | Learned Factory interactive machine intel 8954 | -6/Lower Caves | Discovered new exit (range 9) 9173 | -6/Lower Caves | Build established: Scavenger-Mutant 9275 | -6/Lower Caves | Entered Data Miner 9275 | -6/Data Miner | Accompanied by 1 ally 9275 | -6/Data Miner | Discovered new exit (range 6) 9308 | -6/Data Miner | Met Data Miner 9338 | -6/Data Miner | Learned location of Section 7 (-2) 9338 | -6/Data Miner | Acquired the access code to Warlord's prototype stash 9368 | -6/Data Miner | Received God Mode back door access code from Data Miner 9599 | -6/Data Miner | Interfaced with the Data Conduit 9650 | -6/Data Miner | Core integrity fell below 50% 9661 | -6/Data Miner | Released all parts (6) 9667 | -6/Data Miner | Entered Proximity Caves 9691 | -5/Proximity Caves | Lost 14 parts (1p5n2u6w) 9901 | -5/Proximity Caves | Build established: Mutant 9933 | -5/Proximity Caves | Discovered exit to Factory (range 14) 9942 | -5/Proximity Caves | Core integrity fell below 20% 9943 | -5/Proximity Caves | Entered Factory 9943 | -5/Factory | Evolved 2 slots: Power x1, Weapon x1 9944 | -5/Factory | Identified exit to Extension 9946 | -5/Factory | Loaded intel: 274 machine locations 9947 | -5/Factory | Loaded intel: 56 interactive machine locations 9951 | -5/Factory | Identified exit to Upper Caves 10106 | -5/Factory | Entered Extension 10107 | -5/Extension | Loaded intel: 40 machine locations 10122 | -5/Extension | Rescued a captive Derelict 10420 | -5/Extension | Rescued A7 10422 | -5/Extension | Destroyed A7 10431 | -5/Extension | Extracted ID and sensor layout for unrecognized location from A7's data core 10506 | -5/Extension | Disrupted transfer network 10547 | -5/Extension | Rescued a captive Derelict 10738 | -5/Extension | Build established: Scavenger-Tank 10746 | -5/Extension | Rescued a captive Derelict 10747 | -5/Extension | Rescued a captive Derelict 10882 | -5/Extension | P-70 Sage assimilated allied X1-1P7(g) 10929 | -5/Extension | Rescued a captive Derelict 10930 | -5/Extension | Rescued a captive Derelict 10989 | -5/Extension | Rescued a captive Derelict 10991 | -5/Extension | Rescued a captive Derelict 11073 | -5/Extension | Rescued a captive Derelict 11093 | -5/Extension | Rescued a captive Derelict 11098 | -5/Extension | Rescued a captive Derelict 11158 | -5/Extension | Discovered new exit (range 10) 11161 | -5/Extension | Discovered new exit (range 6) 11202 | -5/Extension | Entered Cetus 11202 | -5/Cetus | Accompanied by 12 allies 11203 | -5/Cetus | Loaded intel: 24 machine locations 11225 | -5/Cetus | Spotted Cetus Guard 11225 | -5/Cetus | Spotted Cetus Guard 11228 | -5/Cetus | Spotted Cetus Guard 11229 | -5/Cetus | Spotted Cetus Guard 11238 | -5/Cetus | Destroyed Cetus Guard 11248 | -5/Cetus | Destroyed Cetus Guard 11249 | -5/Cetus | Allies destroyed Cetus Guard 11252 | -5/Cetus | Destroyed Cetus Guard 11278 | -5/Cetus | Lost 3 allies 11416 | -5/Cetus | Discovered new exit (range 15) 11453 | -5/Cetus | Spotted Cetus Guard 11453 | -5/Cetus | Spotted Cetus Guard 11455 | -5/Cetus | Spotted Cetus Guard 11457 | -5/Cetus | Spotted Cetus Guard 11464 | -5/Cetus | Destroyed Cetus Guard 11468 | -5/Cetus | Destroyed Cetus Guard 11474 | -5/Cetus | Destroyed Cetus Guard 11477 | -5/Cetus | Allies destroyed Cetus Guard 11482 | -5/Cetus | Discovered new exit (range 15) 11490 | -5/Cetus | Met Revision 17 11679 | -5/Cetus | Entered Archives 11679 | -5/Archives | Accompanied by 7 allies 11680 | -5/Archives | Loaded intel: 8 machine locations 11742 | -5/Archives | Lost 6 allies 11787 | -5/Archives | Discovered new exit (range 15) 11820 | -5/Archives | Entered Hub_04(d) 11820 | -5/Hub_04(d) | Accompanied by 1 ally 11821 | -5/Hub_04(d) | Loaded intel: 96 machine locations 12010 | -5/Hub_04(d) | Spotted B-75 Beast 12054 | -5/Hub_04(d) | Destroyed B-75 Beast 12252 | -5/Hub_04(d) | Discovered new exit (range 4) 12458 | -5/Hub_04(d) | Network Hub disabled 12464 | -5/Hub_04(d) | Spotted Lightning 12464 | -5/Hub_04(d) | Spotted Lightning 12468 | -5/Hub_04(d) | Spotted Lightning 12517 | -5/Hub_04(d) | Entered Factory 12517 | -4/Factory | Evolved 2 slots: Propulsion x1, Utility x1 12518 | -4/Factory | Loaded intel: 256 machine locations 13227 | -4/Factory | System corruption reached 10% 13308 | -4/Factory | Intercept squad dispatched 13325 | -4/Factory | Spotted Tracker 13326 | -4/Factory | Spotted Tracker 13341 | -4/Factory | Destroyed Tracker 13367 | -4/Factory | Spotted Combat Programmer 13368 | -4/Factory | Spotted Combat Programmer 13397 | -4/Factory | Destroyed Combat Programmer 13453 | -4/Factory | System corruption reached 30% 13485 | -4/Factory | Destroyed Combat Programmer 13527 | -4/Factory | Core integrity fell below 50% 13533 | -4/Factory | Released all parts (5) 13575 | -4/Factory | Spotted B-86 Titan 13577 | -4/Factory | Lost 28 parts (5p7n7u9w) 13603 | -4/Factory | Core integrity fell below 20% 13603 | -4/Factory | Destroyed by G-67 Veteran with Field Laser Last Messages --------------- 13596_ Slug penetrates Wall. 13599_ Slug penetrates Fusion Modulator. 13602_ Fusion Modulator explodes. 13602_ K-01 Serf destroyed. 13602_ Fusion Modulator explodes. 13602_ Fabricator disabled. 13602_ P-70 Sage destroyed. 13602_ Fusion Modulator explodes. 13602_ K-01 Serf destroyed. 13602_ VTOL Module destroyed. 13602_ Lgt. Nuclear Core destroyed. 13602_ VTOL Module destroyed. 13602_ DSF Access disabled. 13602_ Fusion Modulator explodes. 13602_ G-67 Veteran destroyed. 13602_ P-70 Sage destroyed. 13602_ VTOL Module destroyed. 13602_ Penetrated by Slug. 13602_ Slug penetrates Reinforced Barrier. 13603_ QUBYE0<>%/FYGW1JS=XZYZFD1D Map ----- +----------------------------------------------------+ | ??????????"""?"""??????????????????# """ ## #???? | | ??????????"""?"""??????????????????# """ ## #???? | | ??????????"""?"""??????????????????# ## #???? | | ???????????????????????????????????######### #???? | | ??????????"""?"""??????????????????????????# #???? | | ??????????"""?"""??????????????????????????# #???? | | ??????????"""?"""????????????"""???????????# #???? | | ?????????????????????????????"""???????????# #???? | | ?????????????????????????????"""???????????# #???? | | ?????????????????????????????????????"""???# ##### | | ??????????????????????????!??"""?????"""???# | | ?????????????????????????? ??"""?????"""???# | | ??????????????????###????? ??"""???????????# | | ????????? ??????##BB#####!?????? ####+##### | | ?????????? #######;BB ;;;#######g## | | ?????????? h!hg | | ???????"?? =% g | | ?????????? " = p ## ## | | ???????????# " [ #? #? | | ???????????# = ] ! #? #? | | ########??## !! #? ? | | #??#; = !! #?" ? | | ####; #?? # | | ! ! ##########??#? | | #????????????? | | ^ @ #????????????? | | ##### [ #????????????? | | #???#;;;;; # # ;;;;#####????????????? | | ########???##### #??#### ###????????????????? | | | | | | | | | | | | | | | | | | | | | | | | | | | | | | | | | | | | | | | | | | | +----------------------------------------------------+ Best States ------------- Heat Dissipation 109 Coolant Potential 80 Energy Generation 43 Energy Capacity 590 Matter Stores 300 Matter Capacity 300 Sight Range 22 Robot Scan Range 14 Terrain Scan Range 14 Terrain Scan Density 210 Jamming Range 14 Armor Coverage 900 Resistance: KI 25 Utility Shielding 66 Evasion (%) 64 Targeting Accuracy 8 Recoil Reduction 6 Offensive Hacking 24 Defensive Hacking 12 Item Schematics ----------------- Combat Drone Bay | -6/Data Miner | Free Lgt. Regenerative Plating | -6/Data Miner | Free Cld. Nuclear Pulse Thruster | -6/Data Miner | Free Prc. Energy Filter | -6/Data Miner | Free Hvy. Gatling Laser | -6/Data Miner | Free Centrium Wheel | -6/Data Miner | Free Adv. Cryofiber Web | -6/Data Miner | Free Adv. Datajack | -6/Data Miner | Free Imp. Transmission Jammer | -6/Data Miner | Free Imp. Fusion Compressor | -6/Data Miner | Free Robot Schematics ------------------ E-15 Imp | -6/Data Miner | Free A-15 Conveyor | -6/Data Miner | Free R-10 Processor | -6/Data Miner | Free X-67 Chaingunner | -6/Data Miner | Free B-60 Warrior | -6/Data Miner | Free Fabricated ------------ Nothing Repaired ---------- Adv. Assault Cannon | 20% | -8/Storage Alien Tech Used ----------------- None Achievements -------------- None Challenges ------------ None Game ------ Seed BurstResetFrame Manual? 0 Play Time 02:15:10 Cumulative 98.2 hours Start 2025.06.26 @ 18:16:42 End 2025.06.27 @ 00:11:27 Sessions 3 Manual Loads 0 Difficulty Rogue Special Mode None Game No. 66 Rogue 66 Adventurer 0 Explorer 0 Win Type - Total 9 Types 2/1/3/1/1/0/0/0/0/1 Lore% 57 Gallery% 57 Achievement% 59 Wizard Run 0 Options --------- Layout 0 ASCII 0 Keyboard 1 Movement Vi Keybinds 0 Fullscreen 2 Font 18/SmallcapsGlow Map View 76x50 Zoom Use 0% Tactical HUD 1 Map Filters NONE Filters NONE Steam 1 RUN: 459cb504-bc68-4b18-82c6-6283e1527534